Cogmind - Beta 17 @@@ ROGUE MODE // 2026.06.29 @ 18:59:42 Player: pinbox Result: Destroyed by G-34 Mercenary with Small Laser Performance ------------- Evolutions (1) 500 Regions Visited (5) 1000 Robots Destroyed (45) 225 Value Destroyed (1295) 1295 Prototype IDs (5) 100 Alien Tech Used (0) 0 Bonus (187) 187 TOTAL SCORE: 3307 Bonus ------- Entered Garrisons 200 Friendly Fire -13 Cogmind --------- Core Integrity 0/400 Matter 158/300 Energy 150/150 System Corruption 14% Temperature Hot (236) Movement Hovering (120) Ox1 Location -9/Garrison Parts ------- > --- POWER (1) -------- Micro Nuclear Core > --- PROPULSION (2) --- Gravmag System > --- UTILITY (4) ------ Small Storage Unit Target Analyzer Hacking Suite Hacking Suite > --- WEAPON (2) ------- Light Assault Rifle > --- INVENTORY (8) ---- Micro Nuclear Core Axe Peak State ------------ > --- POWER ------------ Micro Nuclear Core > --- PROPULSION ------- Gravmag System Gravmag System > --- UTILITY ---------- Small Storage Unit Advanced Targeting Computer Hacking Suite Hacking Suite > --- WEAPON ----------- Shock Rifle Advanced Beam Cannon > --- INVENTORY -------- Light Ion Engine Relay Coupler [NC] Relay Coupler [Swarmer] Relay Coupler [Grunt] Light Assault Rifle Axe [Rating: 29] Favorites ----------- Power Light Ion Engine Engine Light Ion Engine Power Core Micro Nuclear Core Propulsion Aluminum Leg Treads Light Treads Leg Aluminum Leg Hover Unit Gravmag System Flight Unit Flight Unit Utility Hacking Suite Device Terrain Scanner Storage Small Storage Unit Processor Terrain Scan Processor Hackware Hacking Suite Protection Propulsion Shielding Weapon Assault Rifle Energy Gun EM Shotgun Energy Cannon Advanced Beam Cannon Ballistic Gun Assault Rifle Ballistic Cannon Light Cannon Launcher Guided Missile Launcher Slashing Weapon Axe Build | -11 -10 -10 -9 -9 -9 ------- Run | Yrd Mat Min Mat Sto Gar Slots Evolved 2 | . . . 2 . . Power . | . . . . . . Propulsion . | . . . . . . Utility 2 | . . . 2 . . Weapon . | . . . . . . Parts Attached 52 | 6 2 5 4 27 8 Power 8 | 1 . 1 1 3 2 Engine 7 | 1 . 1 1 3 1 Core 1 | . . . . . 1 Reactor . | . . . . . . Propulsion 17 | 2 . 1 . 12 2 Treads 6 | . . . . 6 . Leg 7 | 2 . 1 . 4 . Wheel . | . . . . . . Hover 2 | . . . . . 2 Flight 2 | . . . . 2 . Utility 15 | 1 2 1 2 7 2 Device 3 | . . 1 . 2 . Storage 3 | 1 1 . . 1 . Processor 4 | . . . 2 . 2 Hackware 4 | . . . . 4 . Protection 1 | . 1 . . . . Artifact . | . . . . . . Weapon 12 | 2 . 2 1 5 2 Energy Gun 2 | . . . . 1 1 Energy Cannon 1 | . . . . 1 . Ballistic Gun 5 | 2 . . . 2 1 Ballistic Cannon 1 | . . 1 . . . Launcher 2 | . . 1 . 1 . Special Weapon . | . . . . . . Impact Weapon . | . . . . . . Slashing Weapon 1 | . . . 1 . . Piercing Weapon . | . . . . . . Special Melee Weapon . | . . . . . . Unidentified Prototypes 3 | . . . . 3 . Corrupted Parts 1 | . . . 1 . . System Corruption 5 | . . . 5 . . Parts Lost 19 | . . 7 . 7 5 Power 4 | . . 2 . 2 . Propulsion 5 | . . 2 . 2 1 Utility 3 | . . 1 . 1 1 Weapon 7 | . . 2 . 2 3 Highest Loss Streak 5 | . . 5 . 3 3 To Critical Strikes . | . . . . . . Average Backups 5 | . 3 4 5 7 6 Power . | . 1 1 . . . Propulsion . | . . . . . . Utility 3 | . 1 2 4 4 3 Weapon 1 | . 1 1 1 1 1 Tool/Special . | . . . . . . Unused Backups 11 | . 1 . . 3 7 Power 1 | . . . . . 1 Propulsion 2 | . . . . 1 1 Utility 7 | . . . . 2 5 Weapon 1 | . 1 . . . . Tool/Special . | . . . . . . Average Slot Usage (%) 92 | . 99 84 82 93 94 Engine 11 | . 14 13 10 10 8 Treads 4 | . . . . 9 . Leg 13 | . 28 15 11 8 15 Device 4 | . . 11 11 2 . Storage 11 | . 14 14 11 10 11 Processor 2 | . . . 21 1 5 Hackware 16 | . . . . 28 23 Protection 1 | . 13 1 . . . Energy Gun 1 | . . . . 2 3 Energy Cannon 5 | . . . . 8 10 Ballistic Gun 9 | . 28 14 . 3 8 Ballistic Cannon 3 | . . 12 11 . . Slashing Weapon 2 | . . . 7 4 . Peak Build Rating 29 | 6 7 9 14 26 29 Average Rating 16 | 4 6 6 12 21 24 On Entrance 9 | . 6 7 4 14 26 Avg Prop Armor Cover (%) 11 | . . . . 11 . Naked Turns . | . . . . . . Heaviest Build 29 | 12 18 20 20 29 24 Greatest Support 40 | 20 20 20 10 40 26 Greatest Overweight (x) 6 | 1 . 4 1 6 1 Average Overweight (x) . | . . . 1 . . Largest Inventory Capacity 10 | 8 10 10 10 10 8 Average Capacity 8 | 7 9 10 10 8 8 Most Carried 10 | 2 7 8 8 10 8 Average Carried 5 | 1 3 4 5 7 6 Final Capacity 10 | 8 10 10 10 8 8 Final Carried 8 | 2 7 4 8 8 2 Class Distribution -------------------- 55% | Hacker-Mutant 40% | Mutant 4% | Scavenger-Mutant Dominant Class ---------------- Mutant | -10/Materials Mutant | -10/Mines Mutant | -9/Materials Hacker-Mutant | -9/Storage Hacker-Mutant | -9/Garrison Resources | -11 -10 -10 -9 -9 -9 ----------- Run | Yrd Mat Min Mat Sto Gar Matter Collected 1465 | 163 229 170 13 564 326 Remotely . | . . . . . . Salvage Created 1480 | . 341 38 13 639 449 Parts 94 | . 24 . 1 43 26 Haulers Intercepted . | . . . . . . Recyclers Shooed . | . . . . . . Parts Field Recycled . | . . . . . . Retrieved Matter . | . . . . . . Parts Self-Destructed . | . . . . . . Prevented . | . . . . . . Parts Restored . | . . . . . . Kills | -11 -10 -10 -9 -9 -9 ------- Run | Yrd Mat Min Mat Sto Gar Combat Hostiles Destroyed 41 | . 8 6 1 16 10 Melee 10 | . . . 1 9 . Guns 14 | . 7 2 . . 5 Cannons 8 | . . . . 3 5 AOE 9 | . 1 4 . 4 . Classes Destroyed 9 | . 5 2 . 1 1 Builder 2 | . 2 . . . . Recycler 3 | . 1 . . 2 . Watcher 3 | . 1 . . 2 . Swarmer 20 | . 6 . 1 7 6 Grunt 7 | . 2 . . 4 1 Sentry 5 | . . . . 5 . Demolisher 2 | . . 2 . . . Programmer 3 | . . . . . 3 Assembled 4 | . . 4 . . . Best Kill Streak 6 | . 4 5 1 6 4 Combat Bots Only 6 | . 3 5 1 6 4 Max Kills in Single Turn 4 | . 4 3 1 3 1 Gunslinging 1 | . 1 . . . . Exploded 3 | . 1 2 . 3 . Melee 1 | . . . 1 1 . Uniques/NPCs Destroyed . | . . . . . . Combat | -11 -10 -10 -9 -9 -9 -------- Run | Yrd Mat Min Mat Sto Gar Hostile Shots Fired 228 | . 24 41 15 67 81 Missed 59 | . 7 10 9 14 19 Hits 169 | . 17 31 6 53 62 Projectile 169 | . 17 31 6 53 62 AOE 10 | . . 10 . . . Critical Strikes 1 | . . 1 . . . Actively Blocked 1 | . . 1 . . . Part Disruptions 2 | . 1 . . . 1 Actively Blocked 1 | . 1 . . . . Damage Taken 2738 | . 241 781 56 1078 582 Core 640 | . 40 197 40 269 94 Absorbed by Shields . | . . . . . . Redirected to Shielding 50 | . 17 33 . . . Regen/Repaired (Parts) 40 | . . . . 40 . Core Remaining (%) 52 | 100 . 5 . . . Volleys Fired 119 | . 24 10 1 31 53 Largest 2 | . 2 2 1 2 2 Hottest 118 | . 40 53 30 113 118 Shots Fired 206 | . 48 15 1 47 95 Gun 124 | . 48 9 . 15 52 Cannon 66 | . . . 1 22 43 Launcher 16 | . . 6 . 10 . Special . | . . . . . . Kinetic 114 | . 48 9 1 15 41 Thermal 63 | . . . . 20 43 Explosive 16 | . . 6 . 10 . Electromagnetic 13 | . . . . 2 11 Robot Hit Streak 21 | . 5 5 . 6 21 Robot Miss Streak 6 | . 5 2 1 5 6 Penetration Max . | . . . . . . Secondary Targets 2 | . 1 . . . 1 Max Gunslinging Chain 1 | . 1 . . . 1 Shots Hit Robots 122 | . 26 10 1 39 46 Core Hits 83 | . 17 15 1 22 28 Critical Kills . | . . . . . . Critical Parts Destroyed . | . . . . . . Critical Strikes 3 | . . . . 1 2 Corrupt 2 | . . . . . 2 Sever 1 | . . . . 1 . Melee Attacks 43 | . . . 1 42 . Impact . | . . . . . . Slashing 43 | . . . 1 42 . Piercing . | . . . . . . Sneak Attacks 1 | . . . . 1 . Combat Hostiles . | . . . . . . Follow-up Attacks . | . . . . . . Damage Inflicted 3111 | . 569 294 38 1405 805 Guns 782 | . 333 91 . 69 289 Cannons 639 | . . . . 123 516 Explosions 833 | . 236 199 . 398 . Melee 851 | . . . 38 813 . Ramming 6 | . . 4 . 2 . Kinetic 705 | . 333 91 . 41 240 Thermal 639 | . . . . 123 516 Explosive 597 | . . 199 . 398 . Electromagnetic 313 | . 236 . . 28 49 Impact . | . . . . . . Slashing 851 | . . . 38 813 . Piercing . | . . . . . . Highest Corruption 14 | . 1 1 5 13 14 Average Corruption 6 | . 1 1 5 7 13 Corruption Purged . | . . . . . . Corruption Blocked . | . . . . . . Effects 64 | . . 2 3 38 21 Message Errors 14 | . . 2 1 9 2 Matter Fused 17 | . . . 1 14 2 Heat Flow Errors 7 | . . . . 5 2 Energy Discharges 6 | . . . . 3 3 Parts Fused 1 | . . . . . 1 Data Loss (minor) 7 | . . . . 5 2 Data Loss (major) 3 | . . . 1 . 2 Misfires 2 | . . . . 1 1 Alerts 1 | . . . . 1 . Weapon Failures 6 | . . . . . 6 Overload Shots . | . . . . . . Overflow Damage 128 | . . 3 . 125 . Projectiles . | . . . . . . Explosions 55 | . . 3 . 52 . Melee 73 | . . . . 73 . Knockbacks . | . . . . . . Impact . | . . . . . . Kinetic . | . . . . . . Secondary . | . . . . . . Self-Inflicted Damage 332 | . 78 111 . 143 . Shots 12 | . 2 4 . 6 . Rammed 2 | . . . . 2 . Targets Rammed 7 | . . 4 . 3 . Kicked 5 | . . 4 . 1 . Crushed . | . . . . . . Highest Temperature 317 | . . . . 215 317 Average Temperature 123 | . . . . 52 161 Received Heat Transfer 321 | . 48 75 9 141 48 Effects 4 | . . . . . 4 Energy Bleed 1 | . . . . . 1 Interference 3 | . . . . . 3 Siege Activations . | . . . . . . Martial Activations . | . . . . . . Shielding Activations . | . . . . . . Robots Disrupted . | . . . . . . Combat Hostiles . | . . . . . . Robots Corrupted . | . . . . . . Combat Hostiles . | . . . . . . Parts Fried 1 | . 1 . . . . Impact Corruptions . | . . . . . . Robots Melted . | . . . . . . Combat Hostiles . | . . . . . . Parts Melted 2 | . . . . 1 1 Heat Transferred 1110 | . . . . 222 888 Parts Sabotaged . | . . . . . . Parts Stolen . | . . . . . . Parts Stripped . | . . . . . . Power Chain Reactions . | . . . . . . Alert | -11 -10 -10 -9 -9 -9 ------- Run | Yrd Mat Min Mat Sto Gar Maximum Alert Level 1 | . 1 . . . 1 Low Security (%) 93 | 100 83 100 100 100 67 Level 1 6 | . 16 . . . 32 Level 2 . | . . . . . . Level 3 . | . . . . . . Level 4 . | . . . . . . Level 5 . | . . . . . . High Security . | . . . . . . Max Security . | . . . . . . Peak Influence 278 | . 228 81 40 192 278 Initial 81 | . . 81 . 12 . Average 84 | . 95 14 6 106 143 Influence Increases 1405 | . 326 74 50 637 318 Destroy 0b10 Robot/C 740 | . 160 40 20 320 200 Destroy 0b10 Robot/NC 55 | . 20 . . 25 10 Destroy Leader 146 | . 32 10 . 94 10 Successful Hack 32 | . 8 . . 16 8 Disable Machine 105 | . 30 . . 75 . Anti-Garrison Action 50 | . . . . . 50 Destroy Structure 97 | . 1 9 . 47 40 Lose Combat Pursuer 180 | . 75 15 30 60 . Influence Decreases 1137 | . 118 282 20 667 50 Entered New Map 145 | . . 127 . 18 . Time Decay 746 | . 118 95 20 513 . Lost Part 180 | . . 60 . 70 50 Purge Threat 66 | . . . . 66 . Squads Dispatched 3 | . 1 . . 2 . Investigation 1 | . . . . 1 . Extermination . | . . . . . . Reinforcement 2 | . 1 . . 1 . Assault . | . . . . . . Garrison . | . . . . . . Intercept . | . . . . . . Searches Triggered . | . . . . . . Construction Impeded . | . . . . . . Haulers Reinforced . | . . . . . . Active Scanning Responses . | . . . . . . Cargo Convoy Interrupts . | . . . . . . Stealth | -11 -10 -10 -9 -9 -9 --------- Run | Yrd Mat Min Mat Sto Gar Distress Signals 6 | . 1 . 1 4 . Communications Jammed . | . . . . . . Distress Signals . | . . . . . . Times Spotted 80 | . 11 23 7 26 13 Peak Tracking Total 12 | . 5 12 5 7 5 Tactical Retreats 9 | . 2 1 2 4 . Traps | -11 -10 -10 -9 -9 -9 ------- Run | Yrd Mat Min Mat Sto Gar Traps Triggered 5 | . . . . 3 2 Indirectly . | . . . . . . Trap Hack Attempts . | . . . . . . Triggered . | . . . . . . Disarmed . | . . . . . . Reprogrammed . | . . . . . . Reused . | . . . . . . Traps Extracted . | . . . . . . Installed . | . . . . . . Triggered . | . . . . . . Machines | -11 -10 -10 -9 -9 -9 ---------- Run | Yrd Mat Min Mat Sto Gar Machines Disabled 8 | . 2 . . 5 1 Max in Single Turn 2 | . 2 . . 1 1 Garrison Relay 1 | . . . . . 1 Machines Repaired . | . . . . . . Machines Dismantled . | . . . . . . Machines Sabotaged . | . . . . . . Overloaded Fab Kills . | . . . . . . Hacking | -11 -10 -10 -9 -9 -9 --------- Run | Yrd Mat Min Mat Sto Gar Machines Accessed 18 | . 3 . . 14 1 Terminals 14 | . 2 . . 11 1 Fabricators . | . . . . . . Repair Stations 1 | . . . . 1 . Recycling Units 2 | . 1 . . 1 . Scanalyzers . | . . . . . . Garrison Access 1 | . . . . 1 . Total Hacks 34 | . 5 . . 27 2 Successful 23 | . 3 . . 19 1 Failed 10 | . 2 . . 7 1 Catastrophic 1 | . . . . 1 . Database Lockouts 1 | . . . . 1 . Manual 26 | . 7 . . 19 . Terminals 26 | . 4 . . 20 2 Fabricators . | . . . . . . Repair Stations 3 | . . . . 3 . Recycling Units 3 | . 1 . . 2 . Scanalyzers . | . . . . . . Garrison Access 2 | . . . . 2 . Terminal Hacks 13 | . 1 . . 11 1 Prototype ID Bank 1 | . . . . 1 . Open Door 5 | . . . . 5 . Level Access Points 1 | . . . . 1 . Branch Access Points 2 | . 1 . . 1 . Emergency Access Points 1 | . . . . . 1 Unreport Threat 1 | . . . . 1 . Patrol Status 1 | . . . . 1 . Zone Layout 1 | . . . . 1 . Fabricator Hacks . | . . . . . . Repair Station Hacks 3 | . . . . 3 . Scan Component 2 | . . . . 2 . Repair 1 | . . . . 1 . Recycling Unit Hacks 3 | . 1 . . 2 . Report Inventory 1 | . . . . 1 . Retrieve Components 2 | . 1 . . 1 . Scanalyzer . | . . . . . . Garrison Access Hacks 1 | . . . . 1 . Unlock Access 1 | . . . . 1 . Unauthorized Hacks 3 | . 1 . . 2 . Terminals 3 | . 1 . . 2 . Botnet 3 | . 1 . . 2 . Fabricators . | . . . . . . Repair Stations . | . . . . . . Recycling Units . | . . . . . . Scanalyzers . | . . . . . . Garrison Access . | . . . . . . Data Cores Recovered . | . . . . . . Used . | . . . . . . Hacking Detections 12 | . 2 . . 9 1 Full Trace Events . | . . . . . . Feedback Events . | . . . . . . Feedback Blocked . | . . . . . . Robot Schematics Acquired . | . . . . . . Robots Built . | . . . . . . Authchips . | . . . . . . Time . | . . . . . . Total Robot Build Rating . | . . . . . . Part Schematics Acquired . | . . . . . . Parts Built . | . . . . . . Authchips . | . . . . . . Time . | . . . . . . Total Part Build Rating . | . . . . . . Part Studies Acquired . | . . . . . . Parts Repaired 1 | . . . . 1 . Time 32 | . . . . 32 . Parts Recycled . | . . . . . . Recycled Matter . | . . . . . . Retrieved Matter . | . . . . . . Retrieved Components 18 | . 9 . . 9 . Parts Scanalyzed . | . . . . . . Part Schematics Acquired . | . . . . . . Parts Damaged . | . . . . . . Bothacking | -11 -10 -10 -9 -9 -9 ------------ Run | Yrd Mat Min Mat Sto Gar Used RIF Installer . | . . . . . . Robots Hacked . | . . . . . . Non-combat . | . . . . . . Combat . | . . . . . . Robot Hacks Applied . | . . . . . . Relay Couplers Released 5 | . . . . . 5 Machine Destruction 5 | . . . . . 5 Fabnet Peak Effective % . | . . . . . . Robots Rewired . | . . . . . . Allies Hacked . | . . . . . . Hacks Repelled . | . . . . . . Allies | -11 -10 -10 -9 -9 -9 -------- Run | Yrd Mat Min Mat Sto Gar Total Allies . | . . . . . . Largest Group . | . . . . . . Highest-Rated Group . | . . . . . . Highest-Rated Ally . | . . . . . . Total Orders . | . . . . . . Ally Attacks . | . . . . . . Total Damage . | . . . . . . Kills . | . . . . . . Allies Corrupted . | . . . . . . Allies Melted . | . . . . . . Intel | -11 -10 -10 -9 -9 -9 ------- Run | Yrd Mat Min Mat Sto Gar Active Infowar (turns) 722 | . . 491 141 90 . Terrain 722 | . . 491 141 90 . Robot Analysis Total . | . . . . . . Derelict Logs Recovered 1 | . . 1 . . . Drone Launches . | . . . . . . Drone Recoveries . | . . . . . . Exploration | -11 -10 -10 -9 -9 -9 ------------- Run | Yrd Mat Min Mat Sto Gar Turns Passed 2959 | 61 374 584 141 1406 393 Spaces Moved 1470 | 44 243 293 47 679 164 Core 8 | 5 . 1 . 2 . Treads 282 | . . . . 282 . Legs 1117 | 39 243 292 47 387 109 Wheels . | . . . . . . Hover 55 | . . . . . 55 Flight 8 | . . . . 8 . Fastest Speed 50 | 50 120 120 190 117 56 Average Speed 147 | 115 120 184 190 152 98 Slowest Speed 350 | 190 120 250 190 350 120 Overloaded Moves . | . . . . . . Propulsion Burnouts . | . . . . . . Robots Hopped . | . . . . . . Potential Cave-ins 27 | . . . . 27 . Cave-ins Triggered 2 | . . . . 2 . Exploration Rate (%) 35 | 4 39 65 9 74 22 Regions Visited 5 Branch Regions 2 Pre-discovered Areas 1 | . . 1 . . . Known Exits Taken 2 | . 1 . . 1 . Unknown Exits Taken 3 | 1 . 1 1 . . Scrap Searched 1 | . . 1 . . . Spaces Dug 13 | . . . . 13 . Terrain Destroyed 95 | . . 17 . 78 . Melee 6 | . . . . 6 . Projectile . | . . . . . . AOE 89 | . . 17 . 72 . Terrain Rammed . | . . . . . . Walls Destroyed . | . . . . . . Machines Disabled . | . . . . . . Actions | -11 -10 -10 -9 -9 -9 --------- Run | Yrd Mat Min Mat Sto Gar Total 1968 | 51 277 317 96 936 291 Wait 136 | . 1 3 36 74 22 Move 1465 | 43 242 292 46 678 164 Hop . | . . . . . . Pick Up 48 | 2 6 1 8 26 5 Fast Attach 51 | 6 1 . . 24 20 Attach 26 | . . 4 4 12 6 Detach 4 | . . . . 4 . Swap 6 | . 1 3 . 1 1 Drop 45 | . 2 . . 33 10 Fire 119 | . 24 10 1 31 53 Melee 43 | . . . 1 42 . Ram . | . . . . . . Kick 5 | . . 4 . 1 . Crush 2 | . . . . 2 . Escape Stasis 15 | . . . . 5 10 Rewire 3 | . . . . 3 . Trap . | . . . . . . Miscellaneous . | . . . . . . Route ------- -11/Scrapyard -10/Materials (discovered 2 exits: *Min x2) -10/Mines -9/Materials (discovered 2 exits: *Sto x2) -9/Storage (discovered 3 exits: *Mat / Rec / Gar) -9/Garrison History --------- Turn | Location | Event 2 | -11/Scrapyard | Met Revision 17 20 | -11/Scrapyard | Discovered new exit (range 15) 62 | -11/Scrapyard | Entered Materials 127 | -10/Materials | Identified exit to Mines 316 | -10/Materials | Build established: Mutant 436 | -10/Materials | Entered Mines 437 | -10/Mines | Assembled infested the area 437 | -10/Mines | Met a Derelict bent on vengeance 442 | -10/Mines | Assisted by a Guerilla fighting off Assembled 443 | -10/Mines | Received a Rocket Launcher from a helpful Derelict 491 | -10/Mines | Core integrity fell below 50% 523 | -10/Mines | Lost 5 parts (1p2n1u1w) 999 | -10/Mines | Discovered new exit (range 9) 1003 | -10/Mines | Core integrity fell below 20% 1020 | -10/Mines | Entered Materials 1020 | -9/Materials | Evolved 2 slots: Utility x2 1046 | -9/Materials | Discovered new exit (range 16) 1050 | -9/Materials | Discovered new exit (range 13) 1161 | -9/Materials | Entered Storage 1268 | -9/Storage | Lost 3 parts (1p1n1w) 1513 | -9/Storage | Build established: Hacker-Mutant 1616 | -9/Storage | Identified exit to Recycling 1616 | -9/Storage | Identified exit to Materials 1934 | -9/Storage | Repaired Cooling System 1975 | -9/Storage | Found Prototype Launcher 1975 | -9/Storage | Identified Gui. Missile Launcher 2083 | -9/Storage | Crushed by falling debris 2083 | -9/Storage | Core integrity fell below 50% 2123 | -9/Storage | Lost 3 parts (1n1u1w) 2165 | -9/Storage | Crushed by falling debris 2165 | -9/Storage | System corruption reached 10% 2561 | -9/Storage | Identified exit to Garrison 2564 | -9/Storage | Central database locked down 2567 | -9/Storage | Entered Garrison 2613 | -9/Garrison | Triggered checkpoint 2627 | -9/Garrison | Core integrity fell below 20% 2733 | -9/Garrison | Garrison Relay disabled 2929 | -9/Garrison | Triggered checkpoint 2934 | -9/Garrison | Triggered checkpoint 2960 | -9/Garrison | Destroyed by G-34 Mercenary with Small Laser Last Messages --------------- 02929_ S-10 Pest destroyed. 02932_ Destroyed Flight Unit. 02933_ Adv. Beam Cannon destroyed. 02934_ System corrupted: Energy discharge (-37). 02934_ Beams of light sweep through the air. An alarm sounds. 02936_ S-10 Pest destroyed. 02936_ Switching to secondary target: G-34 Mercenary. 02944_ S-10 Pest destroyed. 02945_ System corrupted: Shock Rifle failed to cycle. 02950_ System corrupted: Shock Rifle fused. 02950_ System corrupted: Lgt. Assault Rifle jammed. 02953_ Gravmag System destroyed. 02953_ G-34 Mercenary destroyed. 02956_ System corrupted: Lgt. Assault Rifle jammed. 02957_ Shock Rifle destroyed. Map ----- +----------------------------------------------------+ | ???????????????????????????????????????????+?????? | | ?????????????????????????????????????????????????? | | ?????????????????????????????????????????????????? | | ?????????????????????????????????????????????????? | | ?????????????????????????????????????????????????? | | ?????????????????????????????????????????????????? | | ?????????????????????????????????????????????????? | | ???????????????????????????????????????????+?????? | | ?????????????????????????????????????????????????? | | ?????????????????????????????????????????????????? | | ??????????????????????? ????? ??????????????????? | | ?????????????????????## #??? ##?+??????????????? | | ?????????????????????# ??? ????????????????? | | ???????????+????????? ??? ??? ???????????? | | ???????????+????????? ??? ?? ????????????? | | ?????????????????????# #?? #? #????????????? | | ?????????????????????# ##? ## #????????????? | | ?????????????????????" ? "????????????? | | ?????????????????????" ? ?????????????? | | ?????????????????????" ? ??????????????? | | ?????????????????????" ? ?????+??????????? | | ?????????????????????# #? = #????#????????????? | | ???????????########### ##g%* ## ####+????????? | | ???????????# ^ g ???????? | | ???????????# [ ???????? | | ???????????# #???#### @%= ???????? | | ???????????# #??????##;###[s[ ##++####?+????????? | | ???????????# #???????#=#??%*% #?????????????????? | | ???????????# #???????#*#??#####?????????????????? | | ???????????# ######### #????????????????????????? | | ???????????# " ==! *#????????????????????????? | | ???????????# #########"####?????????????????????? | | ???????????# #????# # # #?????????????????????? | | ???????????# #????# + + #???????????????+?????? | | ???????????# #????##+# #"##???????????????+?????? | | ??########## #????# #*# #?????????????????????? | | ??# ####?# " " #?????????????????????? | | ??# " #?#########?????????????????????? | | ??# ##### #### #???????????????????????????????? | | ??# #???# #??# #???????????????????????????????? | | ??#####???# ##?# #???#######?????????????????????? | | ????####??# T#?# #???#"" ""#?????????????????????? | | ???## #### ####=######!! ##?????????????????????? | | ??## ==*%[* !!!! #?????????????????????? | | ??# #########=%!########?????????????????????? | | ??# # #???????#**!#????????????????????????????? | | ??# # #???????#####????????????????????????????? | | ??#######???????????????????????????????????++???? | | ?????????????????????????????????????????????????? | | ????????????????????????????????????????????++???? | +----------------------------------------------------+ Best States ------------- Heat Dissipation 28 Energy Generation 19 Energy Capacity 500 Matter Stores 300 Matter Capacity 300 Sight Range 16 Terrain Scan Range 14 Terrain Scan Density 160 Additional Mass Support 6 Propulsion Shielding 33 Evasion (%) 55 Targeting Accuracy 8 Target Analysis 5 Recoil Reduction 2 Offensive Hacking 30 Item Schematics ----------------- None Robot Schematics ------------------ None Fabricated ------------ Nothing Repaired ---------- Cooling System | 20% | -9/Storage Studied --------- None Alien Tech Used ----------------- None Achievements -------------- I Survived The Infestation Part-time Excavator Thread The Needle Around The Corner root@ Challenges ------------ None Game ------ Seed OmegaFieldthrustWheel Manual? 0 Play Time 00:43:54 Cumulative 18.1 hours Start 2026.06.29 @ 16:29:30 End 2026.06.29 @ 18:59:42 Sessions 3 Manual Loads 0 Difficulty Rogue Special Mode None Game No. 18 Rogue 18 Adventurer 0 Explorer 0 Win Type - Total 1 Types 1/0/0/0/0/0/0/0/0/0 Lore% 9 Gallery% 21 Achievement% 18 Wizard Run 0 Options --------- Layout 1 ASCII 0 Keyboard 0 Movement Mouse Keybinds 1 Fullscreen 2 Font 24/Smallcaps Map View 50x40 Zoom Use 0% Tactical HUD 1 Map Filters NONE Filters NONE Steam 1 RUN: 1c5b726c-916e-4c03-b397-4ef8aabcecfd